bitfinex/quotes_BTCUSD_20250802
["timestamp","ask_amount","ask_price","bid_price","bid_amount"]
[1754118977931,0.76732158,113910.0,113900.0,0.26767488]
[1754118978830,1.24046461,113910.0,113900.0,0.26767488]
[1754118979254,0.76732158,113910.0,113900.0,0.26767488]
[1754118981856,0.78106128,113910.0,113900.0,0.26767488]
[1754118984798,0.76732158,113910.0,113900.0,0.26767488]
[1754118985668,1.24046461,113910.0,113900.0,0.26767488]
[1754118986119,1.24046461,113910.0,113900.0,0.26569488]
[1754118986347,6.76360764,113910.0,113900.0,0.15015499]
[1754118987039,6.78991685,113910.0,113900.0,0.15015499]
[1754118987499,1.73991685,113910.0,113900.0,0.01423499]
[1754118987724,1.73991685,113910.0,113900.0,0.13854]
[1754118987999,6.78991685,113910.0,113900.0,0.13854]
[1754118988227,6.92595685,113910.0,113900.0,0.13854]
[1754118989120,6.93969777,113910.0,113900.0,0.13854]
[1754118989808,6.93969777,113910.0,113900.0,0.00254]
[1754118993026,5.99341171,113910.0,113900.0,0.00254]
[1754118993236,6.93969777,113910.0,113900.0,0.00254]
[1754118997154,5.99341171,113910.0,113900.0,0.00254]
[1754118997377,6.19932095,113910.0,113900.0,0.00254]
[1754118997612,6.19932095,113910.0,113900.0,0.03047]
[1754118997841,5.72617792,113910.0,113900.0,0.05063]
[1754118998050,6.67246398,113910.0,113900.0,0.05063]
[1754118998494,6.19932095,113910.0,113900.0,0.05063]
[1754119000211,5.59013792,113910.0,113900.0,0.05272]
[1754119000431,6.19932095,113910.0,113900.0,0.05272]
[1754119000684,6.18558003,113910.0,113900.0,0.05272]
[1754119000919,6.65872306,113910.0,113900.0,0.01951]
[1754119001358,6.99872306,113910.0,113900.0,0.01951]
[1754119001575,6.99872306,113910.0,113900.0,0.04744]
[1754119001795,6.52558003,113910.0,113900.0,0.05063]
[1754119002233,1.33954003,113910.0,113900.0,0.05063]
[1754119002445,6.38954003,113910.0,113900.0,0.05063]
[1754119003331,6.40328069,113910.0,113900.0,0.05272]
[1754119005075,6.06328069,113910.0,113900.0,0.05272]
[1754119008108,5.59013766,113910.0,113900.0,0.05272]
[1754119008336,6.06328069,113910.0,113900.0,0.05272]
[1754119009273,6.40328069,113910.0,113900.0,0.05272]
[1754119009711,6.87642372,113910.0,113900.0,0.01951]
[1754119010145,6.40328069,113910.0,113900.0,0.05272]
[1754119011718,6.40328069,113910.0,113900.0,0.05063]
[1754119011939,5.93013766,113910.0,113900.0,0.05063]
[1754119012146,6.40328069,113910.0,113900.0,0.05063]
[1754119012806,6.87642372,113910.0,113900.0,0.05063]
[1754119014800,6.40328069,113910.0,113900.0,0.05063]
[1754119015869,6.53916069,113910.0,113900.0,0.05063]
[1754119016303,1.48916069,113910.0,113900.0,0.05063]
[1754119016506,6.53916069,113910.0,113900.0,0.05063]
[1754119017507,6.53916069,113910.0,113900.0,0.05269]
[1754119017934,5.93013766,113910.0,113900.0,0.05269]
[1754119018157,6.40328069,113910.0,113900.0,0.05269]
[1754119019502,5.93013766,113910.0,113900.0,0.05269]
[1754119019718,6.40328069,113910.0,113900.0,0.05269]
[1754119025104,5.93013766,113910.0,113900.0,0.05269]
[1754119025335,5.93013766,113910.0,113900.0,0.13688989]
[1754119025550,0.54013766,113910.0,113900.0,0.13688989]
[1754119025776,0.84,113910.0,113900.0,0.13688989]
[1754119025986,0.84,113910.0,113900.0,0.61003292]
[1754119026908,0.84,113910.0,113900.0,0.69286283]
[1754119028814,0.85373933,113910.0,113900.0,0.13688989]
[1754119029037,0.85373933,113910.0,113900.0,0.41487091]
[1754119033094,0.85373933,113910.0,113900.0,0.13688989]
[1754119033305,0.85373933,113910.0,113900.0,0.41487091]
[1754119036012,0.51373933,113910.0,113900.0,0.41487091]
[1754119039290,0.5,113910.0,113900.0,0.41487091]
[1754119039538,0.5,113910.0,113900.0,0.13688989]
[1754119039772,0.5,113910.0,113900.0,0.41487091]
[1754119041409,0.26712377,113910.0,113900.0,0.39790091]
[1754119041598,0.37543661,113920.0,113900.0,0.39790091]
[1754119041871,0.03543661,113920.0,113910.0,0.50021562]
[1754119042067,0.03543661,113920.0,113910.0,0.53127091]
[1754119042302,0.03543661,113920.0,113910.0,0.25328989]
[1754119043266,0.03643661,113920.0,113910.0,0.25328989]
[1754119043740,0.03643661,113920.0,113910.0,0.53127091]
[1754119044455,0.03643661,113920.0,113910.0,0.25328989]
[1754119044687,0.03543661,113920.0,113910.0,0.25328989]
[1754119046597,0.31341763,113920.0,113910.0,0.08419989]
[1754119046842,0.31341763,113920.0,113910.0,0.22103989]
[1754119047296,0.03543661,113920.0,113910.0,0.22103989]
[1754119047524,0.04917522,113920.0,113910.0,0.22103989]
[1754119047749,0.04917522,113920.0,113910.0,0.25316989]
[1754119049112,0.04917522,113920.0,113910.0,0.11632989]
[1754119049391,0.32715624,113920.0,113910.0,0.25005989]
[1754119049606,0.04917522,113920.0,113910.0,0.25005989]
[1754119050044,0.32715624,113920.0,113910.0,0.25005989]
[1754119050481,0.12530206,113920.0,113910.0,0.25005989]
[1754119050979,5.05,113920.0,113910.0,0.22115989]
[1754119051195,0.27798102,113920.0,113910.0,0.22115989]
[1754119051427,0.53684539,113930.0,113910.0,0.22115989]
[1754119051644,0.27798102,113920.0,113910.0,0.22115989]
[1754119052563,5.35394689,113920.0,113910.0,0.22115989]
[1754119052788,5.35394689,113920.0,113910.0,0.08419989]
[1754119053013,5.35394689,113920.0,113910.0,0.22131989]
[1754119053944,5.07596587,113920.0,113910.0,0.25021989]
[1754119054167,5.35394689,113920.0,113910.0,0.25021989]
[1754119055289,5.07596587,113920.0,113910.0,0.25021989]
[1754119055530,5.35394689,113920.0,113910.0,0.25021989]
[1754119056246,5.07596587,113920.0,113910.0,0.25021989]
[1754119057155,5.07596587,113920.0,113910.0,0.25344989]
[1754119060580,5.07596587,113920.0,113910.0,0.22131989]
[1754119061128,5.07596587,113920.0,113910.0,0.25021989]
[1754119061623,5.35399689,113920.0,113900.0,0.03367]
[1754119061862,5.66798102,113910.0,113900.0,0.08573989]
[1754119062166,5.66798102,113910.0,113900.0,0.22313989]
[1754119062580,5.68172079,113910.0,113900.0,0.25203989]
[1754119062800,5.68172079,113910.0,113900.0,0.25526989]
[1754119063269,5.68172079,113910.0,113900.0,0.25203989]
[1754119063521,5.68172079,113910.0,113900.0,0.22313989]
[1754119063998,5.68172079,113910.0,113900.0,0.25203989]
[1754119064240,5.40373977,113910.0,113900.0,0.25203989]
[1754119064455,0.61798102,113910.0,113900.0,0.25203989]
[1754119064676,5.66798102,113910.0,113900.0,0.25203989]
[1754119066283,5.66798102,113910.0,113900.0,0.25526989]
[1754119067381,5.39,113910.0,113900.0,0.25526989]
[1754119067608,5.66798102,113910.0,113900.0,0.25526989]
[1754119068768,5.68172059,113910.0,113900.0,0.25526989]
[1754119069225,5.40373957,113910.0,113900.0,0.25736989]
[1754119069471,0.01373957,113910.0,113900.0,0.53535091]
[1754119070116,0.01373957,113910.0,113900.0,0.25736989]
[1754119071709,0.85373957,113910.0,113900.0,0.25736989]
[1754119077213,0.85373957,113910.0,113900.0,0.25712989]
[1754119077658,1.13172059,113910.0,113900.0,0.25712989]
[1754119078748,0.85373957,113910.0,113900.0,0.25712989]
[1754119079918,0.85373957,113910.0,113900.0,0.25502989]
[1754119080404,1.13172059,113910.0,113900.0,0.25502989]
[1754119080667,6.18172059,113910.0,113900.0,0.22289989]
[1754119080901,6.63597882,113910.0,113900.0,0.13866]
[1754119081124,6.78583625,113910.0,113900.0,0.00154]
[1754119081839,6.50785523,113910.0,113900.0,0.00154]
[1754119082546,6.22987421,113910.0,113900.0,0.00154]
[1754119082781,6.50785523,113910.0,113900.0,0.00154]
[1754119083039,1.45785523,113910.0,113900.0,0.00154]
[1754119083269,6.50785523,113910.0,113900.0,0.00154]
[1754119083737,6.22987421,113910.0,113900.0,0.00154]
[1754119083972,6.52159617,113910.0,113900.0,0.00154]
[1754119084449,6.33227802,113910.0,113900.0,0.00154]
[1754119085377,6.50785523,113910.0,113900.0,0.00154]
[1754119087001,6.22987421,113910.0,113900.0,0.00154]
[1754119087216,6.50785523,113910.0,113900.0,0.00154]
[1754119087438,6.52159632,113910.0,113900.0,0.00154]
[1754119088798,6.79957734,113910.0,113900.0,0.00154]
[1754119089703,6.34601911,113910.0,113900.0,0.00154]
[1754119089940,6.34531911,113910.0,113900.0,0.00154]
[1754119090139,6.34531911,113910.0,113900.0,0.02857]
[1754119090619,6.52089632,113910.0,113900.0,0.02857]
[1754119092004,6.52089632,113910.0,113900.0,0.00154]
[1754119092218,6.52159632,113910.0,113900.0,0.00154]
[1754119092443,6.79957734,113910.0,113900.0,0.00154]
[1754119095556,6.78583625,113910.0,113900.0,0.00154]
[1754119095993,6.22987421,113910.0,113900.0,0.00154]
[1754119096218,6.78513625,113910.0,113900.0,0.00154]
[1754119097416,6.79887766,113910.0,113900.0,0.00154]
[1754119098738,6.79887766,113910.0,113900.0,0.02857]
[1754119098959,6.52089664,113910.0,113900.0,0.02857]
[1754119099393,6.52089664,113910.0,113900.0,0.0318]
[1754119099827,6.52089664,113910.0,113900.0,0.02857]
[1754119100472,1.47089664,113910.0,113900.0,0.02857]
[1754119100708,1.74887766,113910.0,113900.0,0.02857]
[1754119100933,6.79887766,113910.0,113900.0,0.02857]
[1754119103579,6.79887766,113910.0,113900.0,0.0318]
[1754119106839,6.24291562,113910.0,113900.0,0.0318]
[1754119107062,6.79887766,113910.0,113900.0,0.0318]
[1754119107770,6.79887766,113910.0,113900.0,0.02857]
[1754119110022,6.24291562,113910.0,113900.0,0.02857]
[1754119110248,6.79887766,113910.0,113900.0,0.03153]
[1754119110717,6.24291562,113910.0,113900.0,0.03153]
[1754119111189,6.79887766,113910.0,113900.0,0.03153]
[1754119111419,6.79887766,113910.0,113900.0,0.03352]
[1754119111872,6.24291562,113910.0,113900.0,0.03352]
[1754119112095,1.47089664,113910.0,113900.0,0.03352]
[1754119112572,6.52089664,113910.0,113900.0,0.03352]
[1754119113032,6.24291562,113910.0,113900.0,0.03352]
[1754119113263,6.52089664,113910.0,113900.0,0.03352]
[1754119113513,6.52065664,113910.0,113900.0,0.03352]
[1754119114386,6.34507943,113910.0,113900.0,0.03352]
[1754119115336,6.52065664,113910.0,113900.0,0.03352]
[1754119120100,6.34507943,113910.0,113900.0,0.03352]
[1754119120953,6.52065664,113910.0,113900.0,0.03352]
[1754119121956,6.34507943,113910.0,113900.0,0.03352]
[1754119122639,5.84507943,113910.0,113900.0,0.03352]
[1754119123554,6.02065664,113910.0,113900.0,0.03352]
[1754119124695,5.84507943,113910.0,113900.0,0.03352]
[1754119125595,6.02065664,113910.0,113900.0,0.03352]
[1754119126928,6.29894898,113910.0,113900.0,0.03352]
[1754119127153,6.29894898,113910.0,113900.0,0.03153]
[1754119127595,5.74267562,113910.0,113900.0,0.03153]
[1754119127793,6.29894898,113910.0,113900.0,0.03153]
[1754119128464,1.24894898,113910.0,113900.0,0.03153]
[1754119128689,6.29894898,113910.0,113900.0,0.03153]
[1754119128905,6.02082221,113910.0,113900.0,0.03153]
[1754119129746,5.88386221,113910.0,113900.0,0.03153]
[1754119129955,6.02042221,113910.0,113900.0,0.03352]
[1754119130193,5.844845,113910.0,113900.0,0.03352]
[1754119130404,5.43013841,113910.0,113900.0,0.03352]
[1754119130829,5.416397,113910.0,113900.0,0.03352]
[1754119131695,0.34,113910.0,113900.0,0.39586648]
[1754119132127,0.34,113910.0,113900.0,0.11771989]
[1754119133752,0.35373989,113910.0,113900.0,0.11771989]
[1754119134906,0.34,113910.0,113900.0,0.11771989]
[1754119137373,0.34,113910.0,113900.0,0.39586648]
[1754119137790,0.34,113910.0,113900.0,0.53230648]
[1754119138269,0.35373951,113910.0,113900.0,0.25415989]
[1754119140725,0.01373951,113910.0,113900.0,0.25415989]
[1754119143485,0.01373951,113910.0,113900.0,0.53230648]
[1754119145341,5.05,113910.0,113900.0,0.53230648]
[1754119146285,0.52596587,113920.0,113900.0,0.25415989]
[1754119146511,0.36596587,113920.0,113910.0,0.36234648]
[1754119146741,0.02596587,113920.0,113910.0,0.39512648]
[1754119147205,5.05,113920.0,113910.0,0.39512648]
[1754119147437,0.38630306,113930.0,113910.0,0.11697989]
[1754119147663,0.38630306,113930.0,113920.0,0.41434659]
[1754119147853,0.05585915,113930.0,113920.0,0.53132648]
[1754119148839,0.55585915,113930.0,113920.0,0.53132648]
[1754119149531,0.56959637,113930.0,113920.0,0.53132648]
[1754119149755,0.90959637,113930.0,113920.0,0.53132648]
[1754119150659,0.40959637,113930.0,113920.0,0.53132648]
[1754119153385,0.40959637,113930.0,113920.0,0.25317989]
[1754119153612,0.40959637,113930.0,113920.0,0.53132648]
[1754119155396,0.40959637,113930.0,113920.0,0.25317989]
[1754119155839,0.40959637,113930.0,113920.0,0.53132648]
[1754119158181,0.0338634,113930.0,113920.0,0.53132648]
[1754119158880,0.02012618,113930.0,113920.0,0.53132648]
[1754119159595,0.02012618,113930.0,113920.0,0.25317989]
[1754119159820,0.02012618,113930.0,113920.0,0.53132648]
[1754119161279,0.03557761,113940.0,113930.0,0.27814659]
[1754119161515,0.0356255,113940.0,113930.0,0.36439648]
[1754119161728,0.01378384,113940.0,113930.0,0.39512648]
[1754119161958,0.01378384,113940.0,113930.0,0.11697989]
[1754119162369,0.01378384,113940.0,113930.0,0.39512648]
[1754119162856,0.01478384,113940.0,113930.0,0.11697989]
[1754119163101,0.01478384,113940.0,113930.0,0.39512648]
[1754119163318,0.01478384,113940.0,113930.0,0.11697989]
[1754119163769,0.04977914,113940.0,113930.0,0.11697989]
[1754119164007,0.01478384,113940.0,113930.0,0.11697989]
[1754119166992,0.01452051,113940.0,113930.0,0.11697989]
[1754119167670,0.01452051,113940.0,113930.0,0.39512648]
[1754119167896,0.04987663,113940.0,113930.0,0.39512648]
[1754119168124,0.01452051,113940.0,113930.0,0.39512648]
[1754119169081,0.01452051,113940.0,113930.0,0.11697989]
[1754119169285,0.01452051,113940.0,113930.0,0.39512648]
[1754119169545,0.01452051,113940.0,113930.0,0.11697989]
[1754119172724,0.0494015,113940.0,113930.0,0.11697989]
[1754119173373,0.0494015,113940.0,113930.0,0.39512648]
[1754119174492,0.03588099,113940.0,113930.0,0.39512648]
[1754119174971,0.03588099,113940.0,113930.0,0.39484244]
[1754119175182,0.03588099,113940.0,113930.0,0.11697989]
[1754119175413,0.03588099,113940.0,113930.0,0.39484244]
[1754119177581,0.04961695,113940.0,113930.0,0.39484244]
[1754119179556,0.04961695,113940.0,113930.0,0.11697989]
[1754119179775,0.04961695,113940.0,113930.0,0.39484244]
[1754119180488,5.05,113940.0,113930.0,0.39484244]
[1754119180910,0.03002009,113940.0,113930.0,0.39484244]
[1754119181335,5.05,113940.0,113930.0,0.39484244]
[1754119182168,5.05,113940.0,113930.0,0.39634244]
[1754119184864,5.07620733,113950.0,113930.0,0.39634244]
[1754119185067,5.05,113940.0,113930.0,0.28453255]
[1754119185284,5.05,113940.0,113930.0,0.09086989]
[1754119185514,0.03055411,113940.0,113930.0,0.36873244]
[1754119185735,0.03055411,113940.0,113930.0,0.12151989]
[1754119185955,5.05,113950.0,113930.0,0.39938244]
[1754119186170,5.05,113940.0,113930.0,0.31518255]
[1754119186382,5.05,113940.0,113930.0,0.36561244]
[1754119186824,5.05,113940.0,113930.0,0.39944244]
[1754119187491,5.18612,113950.0,113930.0,0.39944244]
[1754119187716,5.05,113940.0,113930.0,0.03738]
[1754119187966,0.13612,113950.0,113930.0,0.03738]
[1754119187967,5.18612,113950.0,113930.0,0.08994421]
[1754119188174,5.05,113940.0,113930.0,0.00574432]
[1754119188398,5.18612,113950.0,113930.0,0.12377421]
[1754119188613,5.05,113940.0,113930.0,0.14186432]
[1754119188838,5.05,113940.0,113930.0,0.22606421]
[1754119189081,5.05,113940.0,113930.0,0.22386989]
[1754119189298,5.05,113940.0,113930.0,0.53556244]
[1754119191330,5.05,113940.0,113930.0,0.53656244]
[1754119195360,5.05,113950.0,113930.0,0.81442499]
[1754119195610,0.16665236,113960.0,113940.0,0.63992499]
[1754119195823,5.05,113950.0,113940.0,0.39561244]
[1754119196043,5.05,113950.0,113940.0,0.53387244]
[1754119197396,5.05,113950.0,113940.0,0.25600989]
[1754119197622,0.001,113950.0,113940.0,0.53387244]
[1754119197841,0.001,113950.0,113940.0,0.25600989]
[1754119198093,0.001,113950.0,113940.0,0.53387244]
[1754119199757,0.001,113950.0,113940.0,0.25600989]
[1754119199995,0.001,113950.0,113940.0,0.53387244]
[1754119200885,0.001,113950.0,113940.0,0.25600989]
[1754119201130,0.001,113950.0,113940.0,0.53387244]
[1754119201368,0.001,113950.0,113940.0,0.25600989]
[1754119201590,0.001,113950.0,113940.0,0.53387244]
[1754119202083,0.001,113950.0,113940.0,0.25600989]
[1754119202762,0.27886255,113950.0,113940.0,0.25600989]
[1754119202981,0.001,113950.0,113940.0,0.25600989]
[1754119206121,0.27886255,113950.0,113940.0,0.25600989]
[1754119207480,0.001,113950.0,113940.0,0.22031989]
[1754119207704,0.27886255,113950.0,113940.0,0.22031989]
[1754119207926,0.27886255,113950.0,113940.0,0.25091989]
[1754119208370,0.27886255,113950.0,113940.0,0.25386989]
[1754119208597,0.001,113950.0,113940.0,0.25386989]
[1754119208821,0.27886255,113950.0,113940.0,0.25386989]
[1754119209773,0.27886255,113950.0,113940.0,0.25600989]
[1754119210955,0.27886255,113950.0,113940.0,0.25386989]
[1754119213140,0.27886255,113950.0,113940.0,0.25091989]
[1754119213367,0.00448,113950.0,113940.0,0.22031989]
[1754119213596,0.27886255,113950.0,113940.0,0.22031989]
[1754119213819,0.27886255,113950.0,113940.0,0.25091989]
[1754119214041,0.27886255,113950.0,113940.0,0.25386989]
[1754119215158,0.27886255,113950.0,113940.0,0.25536989]
[1754119216171,0.001,113950.0,113940.0,0.25536989]
[1754119216397,0.27886255,113950.0,113940.0,0.25750989]
[1754119217730,0.001,113950.0,113940.0,0.25750989]
[1754119218814,0.001,113950.0,113940.0,0.53537244]
[1754119219437,0.001,113950.0,113940.0,0.25750989]
[1754119220298,0.001,113950.0,113940.0,0.53537244]
[1754119220721,0.001,113950.0,113940.0,0.25750989]
[1754119221870,0.001,113950.0,113940.0,0.53537244]
[1754119222354,0.001,113950.0,113940.0,0.25750989]
[1754119222580,0.001,113950.0,113940.0,0.53537244]
[1754119225988,0.001,113950.0,113940.0,0.25750989]
[1754119228215,0.27886255,113950.0,113940.0,0.25750989]
[1754119228722,0.47132521,113960.0,113940.0,1.09109754]
[1754119228723,0.0004,113960.0,113940.0,1.09109754]
[1754119228938,0.0004,113960.0,113950.0,0.59104904]
[1754119229165,0.0004,113960.0,113950.0,0.39733244]
[1754119229384,0.03028664,113960.0,113950.0,0.39733244]
[1754119229614,0.0004,113960.0,113950.0,0.39733244]
[1754119230090,0.0004,113960.0,113950.0,0.70157399]
[1754119230999,0.0004,113960.0,113950.0,0.42353098]
[1754119231219,0.0004,113960.0,113950.0,0.42653098]
[1754119233015,0.0004,113960.0,113950.0,0.14884889]
[1754119233236,0.0004,113960.0,113950.0,0.42872492]
[1754119233449,0.0004,113960.0,113950.0,0.42653098]
[1754119233936,0.0004,113960.0,113950.0,0.42753098]
[1754119235898,0.0004,113960.0,113950.0,0.14984889]
[1754119236126,0.0004,113960.0,113950.0,0.15204283]
[1754119236338,0.0004,113960.0,113950.0,0.42972492]
[1754119236544,0.0004,113960.0,113950.0,0.42753098]
[1754119240501,0.0004,113960.0,113950.0,0.56357098]
[1754119245382,0.0004,113960.0,113950.0,0.28588889]
[1754119245607,0.0004,113960.0,113950.0,0.56357098]
[1754119248363,0.0004,113960.0,113950.0,0.28588889]
[1754119248584,0.0004,113960.0,113950.0,0.56357098]
[1754119249465,0.0004,113960.0,113950.0,0.28588889]
[1754119249709,0.0004,113960.0,113950.0,0.56357098]
[1754119251039,0.04170583,113970.0,113950.0,0.28588889]
[1754119251273,0.04100583,113970.0,113960.0,0.08419989]
[1754119251495,0.04298583,113970.0,113960.0,0.11412989]
[1754119251928,0.04298583,113970.0,113960.0,0.11632364]
[1754119252137,0.04298583,113970.0,113960.0,0.11412989]
[1754119253033,0.04298583,113970.0,113960.0,0.11512989]
[1754119253918,0.04298583,113970.0,113960.0,0.12052364]
[1754119254860,0.04298583,113970.0,113960.0,0.39601198]
[1754119255402,0.04298583,113970.0,113960.0,0.39812198]
[1754119255836,0.04100583,113970.0,113960.0,0.39812198]
[1754119256398,0.0109857,113970.0,113960.0,0.39812198]
[1754119256857,0.0109857,113970.0,113960.0,0.67564985]
[1754119257557,0.0109857,113970.0,113960.0,0.69604985]
[1754119258844,0.0109857,113970.0,113960.0,0.41846049]
[1754119261116,0.0109857,113970.0,113960.0,0.14083989]
[1754119261344,0.0109857,113970.0,113960.0,0.42065424]
[1754119261579,0.0109857,113970.0,113960.0,0.14083989]
[1754119261801,0.0109857,113970.0,113960.0,0.42065424]
[1754119262029,0.0109857,113970.0,113960.0,0.41846049]
[1754119264993,0.0109857,113970.0,113960.0,0.14083989]
[1754119265233,0.0109857,113970.0,113960.0,0.42065424]
[1754119265458,0.0109857,113970.0,113960.0,0.41846049]
[1754119273579,0.0109857,113970.0,113960.0,0.14083989]
[1754119273774,0.0109857,113970.0,113960.0,0.42065424]
[1754119273979,0.0109857,113970.0,113960.0,0.41846049]
[1754119276029,0.0109857,113970.0,113960.0,0.75846049]
[1754119276256,0.0109857,113970.0,113960.0,1.05353011]
[1754119276709,0.0109857,113970.0,113960.0,1.05253011]
[1754119276932,0.0109857,113970.0,113960.0,1.07753011]
[1754119277150,0.0109857,113970.0,113960.0,1.27903028]
[1754119277364,0.0109857,113970.0,113960.0,1.28203028]
[1754119277815,0.0109857,113970.0,113960.0,1.10553011]
[1754119278933,0.0109857,113970.0,113960.0,1.10253011]
[1754119279166,0.0109857,113970.0,113960.0,1.10553011]
[1754119279389,0.0109857,113970.0,113960.0,1.11053011]
[1754119279661,0.0109857,113970.0,113960.0,1.10553011]
[1754119279880,0.0109857,113970.0,113960.0,1.10253011]
[1754119280105,0.0109857,113970.0,113960.0,1.10653011]
[1754119280550,0.0109857,113970.0,113960.0,1.11253011]
[1754119282764,0.0109857,113970.0,113960.0,1.28803028]
[1754119283250,0.0109857,113970.0,113960.0,1.42387028]
[1754119284612,0.0109857,113970.0,113960.0,1.69267028]
[1754119286556,0.0109857,113970.0,113960.0,1.51717011]
[1754119292992,0.19659736,114030.0,113980.0,0.01744902]
[1754119293209,5.05,114020.0,114000.0,0.2776206]
[1754119293428,5.05,114020.0,114010.0,0.22003989]
[1754119295162,0.03595276,114020.0,114010.0,0.22003989]
[1754119295373,0.03495276,114020.0,114010.0,0.22003989]
[1754119295790,0.001,114020.0,114010.0,0.22003989]
[1754119297480,0.001,114020.0,114010.0,0.49766049]
[1754119298331,0.00047968,114030.0,114010.0,0.49766049]
[1754119298546,5.05,114020.0,114010.0,0.49766049]
[1754119298803,5.05,114020.0,114010.0,0.22103989]
[1754119299008,0.0354454,114020.0,114010.0,0.22103989]
[1754119299426,5.05,114020.0,114010.0,0.22103989]
[1754119300480,0.00047968,114030.0,114010.0,0.52643049]
[1754119300706,0.00047968,114030.0,114010.0,0.24880989]
[1754119301403,0.03628207,114030.0,114010.0,0.24880989]
[1754119301613,0.00047968,114030.0,114010.0,0.24780989]
[1754119302030,0.00147968,114030.0,114010.0,0.52854049]
[1754119302258,0.00147968,114030.0,114010.0,1.02854049]
[1754119302460,0.00147968,114030.0,114010.0,0.75091989]
[1754119303987,0.03675373,114030.0,114010.0,0.75091989]
[1754119304407,0.00147968,114030.0,114010.0,0.75091989]
[1754119305519,0.03792108,114030.0,114010.0,0.75091989]
[1754119307028,0.03792108,114030.0,114010.0,1.00077049]
[1754119307256,0.03792108,114030.0,114020.0,0.02777]
[1754119307520,0.03792108,114030.0,114020.0,0.11196989]
[1754119308415,0.03792108,114030.0,114020.0,0.39470049]
[1754119310193,0.00147968,114030.0,114020.0,0.11707989]
[1754119310434,0.00047968,114030.0,114020.0,0.39689308]
[1754119310664,0.00047968,114030.0,114020.0,0.39470049]
[1754119311340,0.00147968,114030.0,114020.0,0.39470049]
[1754119311829,0.00047968,114030.0,114020.0,0.39470049]
[1754119312064,0.00047968,114030.0,114020.0,0.39570049]
[1754119314666,0.00047968,114030.0,114020.0,0.11807989]
[1754119314904,0.00047968,114030.0,114020.0,0.12027248]
[1754119318327,0.00047968,114030.0,114020.0,0.39789308]
[1754119318534,0.00047968,114030.0,114020.0,0.39570049]
[1754119320007,0.00047968,114030.0,114020.0,0.11807989]
[1754119320214,0.00047968,114030.0,114020.0,0.39789308]
[1754119320430,0.00047968,114030.0,114020.0,0.39570049]
[1754119321806,0.00047968,114030.0,114020.0,0.11807989]
[1754119322051,0.00047968,114030.0,114020.0,0.12027248]
[1754119322518,0.27810028,114030.0,114020.0,0.12027248]
[1754119322763,0.27810028,114030.0,114020.0,0.25183989]
[1754119323685,0.27810028,114030.0,114020.0,0.25179989]
[1754119323889,0.00047968,114030.0,114020.0,0.25179989]
[1754119324119,0.27810028,114030.0,114020.0,0.25179989]
[1754119324348,0.27810028,114030.0,114020.0,0.11296989]
[1754119324566,0.27810028,114030.0,114020.0,0.24868989]
[1754119325427,0.00047968,114030.0,114020.0,0.24868989]
[1754119326531,0.00047968,114030.0,114020.0,0.25386989]
[1754119332512,0.00047968,114030.0,114020.0,0.11814989]
[1754119332730,0.00047968,114030.0,114020.0,0.25386989]
[1754119351235,0.36114409,114030.0,114020.0,0.11614989]
[1754119351447,0.36114409,114030.0,114020.0,0.24864989]
[1754119352719,0.36114409,114030.0,114020.0,0.25188989]
[1754119352892,0.36121195,114030.0,114020.0,0.25188989]
[1754119355267,0.00047968,114030.0,114020.0,0.25188989]
[1754119355456,0.36121195,114030.0,114020.0,0.25188989]
[1754119356398,0.16520181,114030.0,114020.0,0.25188989]
[1754119356638,0.16520181,114030.0,114020.0,0.11296989]
[1754119356824,0.16520181,114030.0,114020.0,0.24860989]
[1754119357187,0.16520181,114030.0,114020.0,0.25184989]
[1754119360093,0.16520181,114030.0,114020.0,0.25385989]
[1754119360302,5.05,114030.0,114020.0,0.25385989]
[1754119360543,0.36073227,114030.0,114020.0,0.25385989]
[1754119361157,5.05,114030.0,114020.0,0.25385989]
[1754119361579,0.36073227,114030.0,114020.0,0.25385989]
[1754119361780,0.72146454,114030.0,114020.0,0.22083989]
[1754119361909,0.36073227,114030.0,114020.0,0.22083989]
[1754119362729,5.77234454,114030.0,114020.0,0.13664]
[1754119363799,5.77234454,114030.0,114020.0,0.13564]
[1754119364224,5.77334454,114030.0,114020.0,0.13564]
[1754119365171,5.05,114020.0,114010.0,0.66416]
[1754119365325,0.36073227,114020.0,114010.0,0.74835989]
[1754119365492,0.36073227,114020.0,114010.0,0.75159989]
[1754119366759,0.027249,114030.0,114010.0,0.75159989]
[1754119366905,0.36073227,114020.0,114010.0,0.75259989]
[1754119367113,5.41073227,114020.0,114010.0,0.74935989]
[1754119367315,5.41073227,114020.0,114010.0,0.66516]
[1754119368047,5.41073227,114020.0,114010.0,0.63664]
[1754119368229,5.41161227,114020.0,114010.0,0.63564]
[1754119368455,5.41073227,114020.0,114010.0,0.63564]
[1754119369493,5.43710427,114020.0,114010.0,0.63564]
[1754119369893,5.57274427,114020.0,114010.0,0.63564]
[1754119370138,5.57274427,114020.0,114010.0,0.63664]
[1754119372397,5.57274427,114020.0,114010.0,0.66516]
[1754119372623,5.91362427,114020.0,114010.0,0.501]
[1754119372827,5.552012,114020.0,114010.0,0.501]
[1754119372943,5.552012,114020.0,114010.0,0.52852]
[1754119373143,5.91274427,114020.0,114010.0,0.52852]
[1754119373354,5.553012,114020.0,114010.0,0.52852]
[1754119373547,5.91374427,114020.0,114010.0,0.52852]
[1754119374896,6.45019552,114020.0,114010.0,0.52852]
[1754119375104,6.2747877,114020.0,114010.0,0.52852]
[1754119376639,6.2747877,114020.0,114010.0,0.53176]
[1754119381874,6.45019552,114020.0,114010.0,0.52852]
[1754119382088,5.553012,114020.0,114010.0,0.52852]
[1754119382298,6.2747877,114020.0,114010.0,0.52852]
[1754119384357,6.2747877,114020.0,114010.0,0.53176]
[1754119384940,5.553012,114020.0,114010.0,0.52852]
[1754119385146,6.2747877,114020.0,114010.0,0.52852]
[1754119386041,6.2747877,114020.0,114010.0,0.53176]
[1754119387472,1.2247877,114020.0,114010.0,0.53176]
[1754119387705,6.2747877,114020.0,114010.0,0.53176]
[1754119387922,6.2747877,114020.0,114010.0,0.53382]
[1754119390780,5.553012,114020.0,114010.0,0.53382]
[1754119390986,6.2747877,114020.0,114010.0,0.53382]
[1754119393688,6.2747877,114020.0,114010.0,0.53176]
[1754119394488,6.2747877,114020.0,114010.0,0.53382]
[1754119409245,5.553012,114020.0,114010.0,0.53382]
[1754119409460,6.2747877,114020.0,114010.0,0.53382]
[1754119413418,5.553012,114020.0,114010.0,0.53382]
[1754119413626,6.2747877,114020.0,114010.0,0.53382]
[1754119415163,6.2747877,114020.0,114010.0,0.6693]
[1754119415612,1.2247877,114020.0,114010.0,0.6693]
[1754119415840,6.2747877,114020.0,114010.0,0.6693]